bitfinex-derivatives/quotes_ETHF0:USTF0_20240917
["timestamp","ask_amount","ask_price","bid_price","bid_amount"]
[1726615282101,0.42817,2334.9,2334.8,2.0634]
[1726615286802,0.42817,2334.9,2334.8,0.8334]
[1726615291807,0.42817,2334.9,2334.8,1.37605119]
[1726615292205,0.42815,2335.1,2334.8,6.88925119]
[1726615292405,0.42815,2335.1,2334.9,0.54265119]
[1726615292601,0.42815,2335.1,2334.8,3.18500252]
[1726615292801,0.42815,2335.1,2334.9,0.54261223]
[1726615293006,0.42815,2335.1,2334.8,3.18500252]
[1726615293206,0.42815,2335.1,2334.9,0.54261517]
[1726615293412,0.42815,2335.0,2334.8,3.18500252]
[1726615293605,0.42815,2335.0,2334.9,0.54262212]
[1726615295011,0.42815,2335.0,2334.9,4.82501853]
[1726615295310,0.42815,2335.0,2334.9,0.54261853]
[1726615295511,0.42815,2335.0,2334.9,4.82501853]
[1726615296304,1.47136,2335.3,2334.9,4.82501853]
[1726615296305,0.42815,2335.1,2334.9,4.82500839]
[1726615296506,0.42815,2335.1,2335.0,0.4252]
[1726615308114,0.42815,2335.1,2335.0,4.863]
[1726615311318,0.42815,2335.1,2335.0,3.633]
[1726615311818,0.42815,2335.1,2335.0,0.4252]
[1726615316622,0.42815,2335.1,2335.0,3.633]
[1726615319622,0.83435,2335.1,2335.0,3.633]
[1726615320531,0.42815,2335.1,2335.0,3.633]
[1726615327826,0.42817,2334.9,2334.8,1.95500252]
[1726615328138,0.42817,2334.9,2334.8,1.80293727]
[1726615329429,0.42817,2334.9,2334.8,1.80296255]
[1726615329932,0.42817,2334.9,2334.8,1.2603]
[1726615330236,0.42817,2334.9,2334.8,1.80296507]
[1726615332637,6.58364,2334.9,2334.6,1.12160252]
[1726615332836,0.42819,2334.8,2334.7,0.3892]
[1726615333135,0.42819,2334.8,2334.7,0.93187901]
[1726615333327,0.42819,2334.8,2334.7,0.3892]
[1726615334333,1.49867,2334.8,2334.7,0.3892]
[1726615335533,1.49867,2334.8,2334.3,1.12160252]
[1726615335534,0.42826,2334.4,2334.3,1.12160252]
[1726615335736,0.42826,2334.4,2334.3,1.66434001]
[1726615335932,0.42826,2334.4,2334.3,0.54273749]
[1726615336440,0.42826,2334.4,2334.2,2.36420252]
[1726615337032,0.3944,2334.6,2334.2,2.36420252]
[1726615337341,0.42828,2334.3,2334.2,1.2426]
[1726615337638,0.42828,2334.3,2334.0,3.2078]
[1726615337639,1.23,2334.3,2334.0,3.2078]
[1726615337841,1.0707,2334.4,2334.0,3.2078]
[1726615337842,0.42832,2334.1,2334.0,3.2078]
[1726615338738,4.71232,2334.1,2334.0,3.2078]
[1726615338927,0.42832,2334.1,2334.0,3.2078]
[1726615339931,0.42836,2333.9,2333.7,1.6568]
[1726615341046,0.42833,2334.1,2333.8,4.4378]
[1726615341648,4.86616,2333.9,2333.3,1.65846]
[1726615341848,0.4284,2333.7,2333.5,0.3883]
[1726615342140,0.42839,2333.8,2333.5,3.5961]
[1726615342537,0.42839,2333.7,2333.5,3.5961]
[1726615343947,1.45998,2334.0,2333.5,3.5961]
[1726615344444,0.4284,2333.7,2333.5,3.5961]
[1726615349554,0.4284,2333.7,2333.5,4.02453]
[1726615350146,0.4284,2333.7,2333.5,3.5961]
[1726615352254,0.4284,2333.7,2333.5,4.02453]
[1726615354557,0.4284,2333.7,2333.5,0.81673]
[1726615354753,0.4284,2333.7,2333.5,4.02453]
[1726615356055,0.42836,2333.9,2333.7,0.42839]
[1726615356253,6.05216,2334.2,2333.8,5.2817]
[1726615356455,0.42834,2334.0,2333.9,0.4071]
[1726615357752,4.27849,2334.4,2333.9,1.6371]
[1726615357947,0.42832,2334.2,2334.0,0.42834]
[1726615358360,0.42832,2334.2,2334.1,0.4139]
[1726615360554,1.23,2334.3,2334.1,0.4139]
[1726615360555,1.65829,2334.3,2334.1,0.4139]
[1726615360758,0.42829,2334.3,2334.1,0.4139]
[1726615360955,0.81977,2334.4,2334.2,0.3901]
[1726615361162,0.42828,2334.3,2334.2,0.3901]
[1726615361552,0.4283,2334.2,2334.1,3.6217]
[1726615362058,1.65829,2334.3,2334.1,3.6217]
[1726615362557,0.42829,2334.3,2334.1,3.6217]
[1726615362962,0.4283,2334.2,2334.1,3.6217]
[1726615370164,0.4283,2334.2,2334.1,0.4139]
[1726615376165,1.65829,2334.3,2334.1,0.84222]
[1726615376970,3.6352,2334.6,2334.2,1.23]
[1726615376971,0.4274,2334.6,2334.2,1.23]
[1726615377167,0.4274,2334.6,2334.4,3.2078]
[1726615377467,0.42825,2334.5,2334.3,0.4213]
[1726615377977,0.42826,2334.5,2334.3,0.4213]
[1726615378275,0.42825,2334.5,2334.3,0.4213]
[1726615378573,2.08563,2334.6,2334.3,0.4213]
[1726615380374,1.65828,2334.4,2334.1,3.6217]
[1726615380569,0.42829,2334.3,2334.1,4.0233]
[1726615380770,0.83999,2334.3,2334.1,4.0233]
[1726615382880,0.4283,2334.2,2334.1,4.0233]
[1726615383076,0.4283,2334.2,2334.1,3.2078]
[1726615383378,0.8519,2334.2,2334.1,3.2078]
[1726615383571,1.92266,2334.2,2334.1,3.2078]
[1726615384376,1.92266,2334.2,2333.7,0.817]
[1726615384377,0.42837,2333.8,2333.7,0.3928]
[1726615384588,1.65837,2333.9,2333.7,0.3928]
[1726615384874,0.42837,2333.9,2333.7,0.3928]
[1726615385075,0.42837,2333.9,2333.8,0.3942]
[1726615386284,0.42837,2333.9,2333.8,0.8231]
[1726615387278,0.42837,2333.9,2333.4,1.12160252]
[1726615387279,0.42837,2333.8,2333.4,1.12160252]
[1726615387483,0.42837,2333.8,2333.3,1.68240378]
[1726615387484,1.23,2333.5,2333.3,1.1856]
[1726615387881,1.65844,2333.5,2333.3,1.1856]
[1726615388084,1.65844,2333.5,2333.0,3.2078]
[1726615388383,4.0431,2333.4,2333.1,0.3876]
[1726615388683,1.65848,2333.2,2333.1,0.3876]
[1726615389072,1.65848,2333.2,2333.0,4.0058]
[1726615389073,0.4285,2333.1,2333.0,3.2078]
[1726615389282,0.4285,2333.1,2332.6,0.7754]
[1726615389283,0.42853,2333.0,2332.6,0.7754]
[1726615389586,0.42854,2332.9,2332.6,0.7754]
[1726615389878,0.84274,2332.9,2332.6,0.7754]
[1726615390482,1.65856,2332.8,2332.6,0.7754]
[1726615390986,0.42858,2332.7,2332.6,0.7754]
[1726615391479,1.65857,2332.8,2332.6,0.7754]
[1726615392384,1.65858,2332.7,2332.6,0.7754]
[1726615392679,2.30146,2332.7,2332.0,3.2078]
[1726615392870,1.23,2332.2,2332.0,3.2078]
[1726615393382,1.65867,2332.2,2332.0,3.2078]
[1726615393576,1.65867,2332.2,2331.8,2.0211]
[1726615393577,1.65867,2332.2,2331.8,0.7911]
[1726615394474,1.23,2332.1,2331.8,0.7911]
[1726615394674,0.42867,2332.2,2331.8,0.7911]
[1726615394675,1.65867,2332.2,2331.8,0.7911]
[1726615395386,1.65867,2332.2,2331.8,1.21984]
[1726615395876,0.8297,2332.4,2331.8,0.7911]
[1726615395877,0.42869,2332.1,2331.8,0.7911]
[1726615396480,0.42868,2332.2,2331.8,1.21983]
[1726615396678,0.42868,2332.2,2332.0,3.2078]
[1726615401974,0.42866,2332.3,2332.0,3.2078]
[1726615402179,3.5097,2332.4,2332.0,3.2078]
[1726615402180,3.5097,2332.4,2332.0,3.6365]
[1726615402685,0.42867,2332.2,2332.0,3.2078]
[1726615403091,0.4286,2332.6,2332.1,6.968]
[1726615403279,4.58358,2332.7,2332.4,0.42861]
[1726615403480,0.42859,2332.6,2332.5,0.8485]
[1726615404187,3.75135,2332.9,2332.5,0.8485]
[1726615404383,0.42858,2332.7,2332.5,0.8485]
[1726615405188,0.42859,2332.6,2332.5,0.8485]
[1726615407789,7.39579,2332.6,2332.5,0.8485]
[1726615408085,7.39579,2332.6,2332.5,0.4235]
[1726615408288,0.42863,2332.4,2332.3,3.5993]
[1726615408484,3.10863,2332.4,2332.3,3.5993]
[1726615409396,7.39583,2332.4,2332.3,3.2078]
[1726615409585,0.42868,2332.2,2332.0,0.8076]
[1726615409986,0.42869,2332.1,2332.0,0.8076]
[1726615414694,3.75163,2332.4,2332.0,0.8076]
[1726615415891,0.42869,2332.1,2332.0,0.8076]
[1726615418591,4.67386,2332.5,2332.0,0.8076]
[1726615418791,0.42866,2332.3,2332.1,3.63648]
[1726615419001,1.07156,2332.5,2332.1,3.63648]
[1726615419002,0.42864,2332.4,2332.1,3.63648]
[1726615419197,1.07156,2332.5,2332.1,3.63648]
[1726615419501,0.42865,2332.3,2332.1,3.2078]
[1726615421402,0.42867,2332.2,2332.1,3.2078]
[1726615423607,0.42869,2332.1,2332.0,0.8076]
[1726615426997,0.4252,2332.5,2332.0,0.8076]
[1726615427193,0.42866,2332.3,2332.1,3.2078]
[1726615427700,0.42866,2332.3,2332.1,3.63648]
[1726615427900,0.42866,2332.3,2332.1,3.2078]
[1726615428497,1.49162,2332.6,2332.1,3.63647]
[1726615428802,0.42865,2332.3,2332.1,3.63647]
[1726615429205,0.42865,2332.3,2332.1,0.42867]
[1726615429408,0.42865,2332.3,2332.1,3.63647]
[1726615429708,0.42866,2332.3,2332.1,3.63647]
[1726615430005,0.42866,2332.3,2332.2,0.42867]
[1726615430199,4.155,2332.7,2332.1,3.2078]
[1726615430404,1.07138,2332.9,2332.4,3.2078]
[1726615430609,0.42858,2332.7,2332.6,3.2078]
[1726615431298,0.42858,2332.7,2332.6,3.63639]
[1726615431810,0.42858,2332.7,2332.6,3.2078]
[1726615432506,0.42858,2332.7,2332.6,3.63639]
[1726615432896,0.42858,2332.7,2332.6,3.2078]
[1726615435007,0.42857,2332.8,2332.6,3.63639]
[1726615436809,0.42857,2332.8,2332.7,0.42858]
[1726615438219,0.42857,2332.8,2332.6,3.63638]
[1726615438708,0.42858,2332.7,2332.6,3.2078]
[1726615443710,3.10858,2332.7,2332.6,3.2078]
[1726615443904,1.66858,2332.7,2332.6,3.2078]
[1726615444299,2.74003,2332.7,2332.6,3.2078]
[1726615444506,7.02723,2332.7,2332.6,3.2078]
[1726615445011,2.74003,2332.7,2332.6,3.2078]
[1726615446000,4.18003,2332.7,2332.6,3.2078]
[1726615446608,0.42858,2332.7,2332.6,3.2078]
[1726615447111,2.68,2332.8,2332.6,3.2078]
[1726615447413,3.10857,2332.8,2332.6,3.5998]
[1726615448912,0.42858,2332.7,2332.6,3.5998]
[1726615451622,0.42858,2332.7,2332.6,4.02839]
[1726615453120,0.42858,2332.7,2332.6,3.5998]
[1726615454215,0.42858,2332.7,2332.6,4.02839]
[1726615454417,1.07137,2332.9,2332.6,4.02839]
[1726615454614,3.75116,2333.4,2332.6,10.5662]
[1726615454812,0.42851,2333.1,2332.9,3.63632]
[1726615455022,4.15916,2333.4,2333.0,0.8275]
[1726615455222,0.4285,2333.1,2333.0,0.8275]
[1726615455519,0.4285,2333.1,2333.0,1.65712]
[1726615455733,2.68,2333.3,2333.0,1.65712]
[1726615455734,0.4285,2333.2,2333.0,1.65712]
[1726615456426,0.42848,2333.3,2333.1,0.4285]
[1726615457117,0.42849,2333.2,2333.0,1.65711]
[1726615457419,0.4285,2333.1,2333.0,1.2286]
[1726615458722,2.68,2333.3,2333.0,1.2286]
[1726615459034,0.42848,2333.2,2333.0,1.65711]
[1726615459217,0.42848,2333.3,2333.0,1.65711]
[1726615459418,0.42845,2333.4,2333.2,3.63628]
[1726615459621,0.42845,2333.4,2333.3,0.4033]
[1726615459831,0.42844,2333.5,2333.3,0.4033]
[1726615460127,3.1053,2333.7,2333.4,0.3917]
[1726615460128,0.42842,2333.6,2333.4,0.3917]
[1726615460325,0.42836,2333.9,2333.6,0.42841]
[1726615460525,0.42836,2333.9,2333.7,0.42839]
[1726615460725,0.42835,2334.0,2333.8,0.3917]
[1726615460935,0.42835,2334.0,2333.8,1.22747]
[1726615461222,0.42835,2334.0,2333.8,0.7991]
[1726615461420,0.42834,2334.0,2333.8,0.7991]
[1726615461925,0.42836,2333.9,2333.8,0.7991]
[1726615462526,0.42835,2334.0,2333.8,0.7991]
[1726615463424,0.42836,2333.9,2333.8,0.7991]
[1726615463725,3.2078,2334.1,2333.8,0.7991]
[1726615463930,0.42834,2334.0,2333.8,1.22747]
[1726615465029,0.42834,2334.0,2333.8,0.7991]
[1726615465626,3.10834,2334.0,2333.8,0.7991]
[1726615466027,2.68,2334.2,2333.8,4.0069]
[1726615466224,0.42832,2334.1,2333.9,0.84695]
[1726615466617,0.42832,2334.1,2333.9,0.4186]
[1726615467220,0.42833,2334.1,2333.9,0.4186]
[1726615467925,0.42834,2334.0,2333.9,0.4186]
[1726615468116,0.42833,2334.1,2333.9,0.4186]
[1726615468323,3.10834,2334.0,2333.8,4.0069]
[1726615469724,3.10836,2333.9,2333.8,3.2078]
[1726615470639,3.92116,2333.9,2333.8,3.2078]
[1726615472147,0.42839,2333.7,2333.6,3.9994]
[1726615473423,0.42838,2333.8,2333.6,3.9994]
[1726615473824,0.42839,2333.7,2333.6,3.9994]
[1726615474423,0.42838,2333.8,2333.6,3.9994]
[1726615474633,0.42839,2333.7,2333.6,3.9994]
[1726615475032,0.42839,2333.8,2333.6,3.9994]
[1726615475630,0.42839,2333.8,2333.6,0.7916]
[1726615476031,0.42839,2333.8,2333.6,3.9994]
[1726615476533,0.42839,2333.7,2333.6,3.9994]
[1726615477327,0.42839,2333.8,2333.6,3.9994]
[1726615477834,0.42839,2333.7,2333.6,3.9994]
[1726615478239,0.42838,2333.8,2333.6,3.9994]
[1726615478428,0.42837,2333.8,2333.6,3.9994]
[1726615481234,0.42837,2333.8,2333.6,4.4278]
[1726615481634,0.42837,2333.9,2333.6,4.42779]
[1726615481837,2.68,2334.1,2333.6,3.9994]
[1726615482137,0.42835,2334.0,2333.7,0.42838]
[1726615482338,0.42835,2334.0,2333.8,0.82797]
[1726615482943,0.42836,2333.9,2333.8,0.3996]
[1726615484442,0.42836,2333.9,2333.7,0.42838]
[1726615485038,0.42835,2334.0,2333.7,0.42838]
[1726615485239,0.42836,2333.9,2333.7,0.42838]
[1726615485442,0.42839,2333.7,2333.6,3.9994]
[1726615486933,12.9648,2333.7,2332.9,3.2078]
[1726615487132,0.8033,2333.8,2332.8,0.8172]
[1726615487133,2.68,2333.0,2332.8,0.8172]
[1726615487339,7.3628,2333.5,2332.8,0.8172]
[1726615487537,3.2078,2333.5,2333.0,3.2078]
[1726615487742,2.68,2333.4,2333.0,3.2078]
[1726615488048,2.68,2333.4,2333.1,0.4059]
[1726615488244,2.68,2333.4,2333.2,0.4274]
[1726615488444,2.68,2333.4,2333.2,0.8172]
[1726615489337,3.10845,2333.4,2333.2,0.8172]
[1726615489735,2.68,2333.4,2333.2,0.8172]
[1726615491141,3.1084,2333.7,2333.3,3.2078]
[1726615491547,3.1084,2333.7,2333.2,0.8172]
[1726615492443,0.42841,2333.6,2333.2,0.8172]
[1726615494636,0.42843,2333.5,2333.2,0.8172]
[1726615496842,0.42845,2333.4,2333.2,0.8172]
[1726615498746,0.42847,2333.3,2333.2,0.8172]
[1726615499439,0.42847,2333.3,2333.2,5.1028]
[1726615499642,0.42847,2333.3,2333.2,0.8172]
[1726615500238,0.42846,2333.4,2333.2,5.1028]
[1726615500444,0.42846,2333.4,2333.2,0.8172]
[1726615501149,0.42847,2333.3,2333.2,0.8172]
[1726615501750,0.42847,2333.3,2333.2,5.1028]
[1726615502044,0.42847,2333.3,2333.2,0.8172]
[1726615502345,2.68,2333.5,2333.2,5.1028]
[1726615502346,0.42846,2333.4,2333.2,5.1028]
[1726615502540,4.27883,2333.6,2333.2,0.8172]
[1726615502743,0.42847,2333.3,2333.2,0.8172]
[1726615502944,4.27883,2333.6,2333.2,0.8172]
[1726615502945,0.42846,2333.4,2333.2,0.8172]
[1726615503845,0.42847,2333.3,2333.2,0.8172]
[1726615504449,0.42847,2333.3,2333.2,5.1028]
[1726615505055,0.42847,2333.3,2333.2,0.8172]
[1726615508290,1.65847,2333.3,2333.2,0.8172]
[1726615510352,0.42847,2333.3,2333.2,0.8172]
[1726615510854,1.65847,2333.3,2333.2,0.8172]
[1726615511450,0.42847,2333.3,2333.2,0.8172]
[1726615511656,0.42846,2333.4,2333.2,0.8172]
[1726615511857,0.42847,2333.3,2333.2,0.8172]
[1726615512858,4.155,2333.9,2333.5,0.42841]
[1726615513053,0.42839,2333.8,2333.6,4.4248]
[1726615513355,4.155,2333.9,2333.7,1.23]
[1726615513356,4.58337,2333.9,2333.7,1.23]
[1726615513552,4.58337,2333.9,2333.6,4.8532]
[1726615514260,0.42838,2333.8,2333.6,4.4248]
[1726615515259,5.81337,2333.9,2333.6,4.85321]
[1726615516360,0.42838,2333.8,2333.6,4.4248]
[1726615516652,5.385,2333.9,2333.6,4.4248]
[1726615516851,5.81337,2333.9,2333.6,4.85321]
[1726615517557,9.02117,2333.9,2333.6,4.85321]
[1726615518257,4.86617,2333.9,2333.6,4.85321]
[1726615518651,4.86617,2333.9,2333.6,1.64541]
[1726615519548,0.42838,2333.8,2333.6,1.64541]
[1726615520862,0.42838,2333.8,2333.6,1.217]
[1726615523273,0.42839,2333.7,2333.6,1.217]
[1726615524448,0.42839,2333.7,2333.6,0.8111]
[1726615524654,0.83559,2333.7,2333.6,0.8111]
[1726615526259,0.83559,2333.7,2333.4,3.2078]
[1726615526260,0.42843,2333.5,2333.4,3.2078]
[1726615526563,1.65843,2333.5,2333.4,3.2078]
[1726615526750,0.42843,2333.5,2333.4,3.2078]
[1726615526955,0.85073,2333.5,2333.4,3.2078]
[1726615528158,0.85073,2333.5,2333.3,0.8473]
[1726615528159,0.42845,2333.4,2333.3,0.8473]
[1726615528365,0.42845,2333.4,2333.3,4.0551]
[1726615528957,0.42845,2333.4,2333.3,0.8473]
[1726615529164,0.42845,2333.4,2333.3,4.0551]
[1726615531564,0.42845,2333.4,2333.3,0.8473]
[1726615532666,0.42845,2333.4,2333.3,4.0551]
[1726615533969,2.30103,2333.6,2333.3,4.0551]
[1726615534270,0.42844,2333.5,2333.3,4.48355]
[1726615535164,1.48227,2333.8,2333.3,4.48355]
[1726615535165,2.71226,2333.8,2333.3,5.2851]
[1726615535365,0.42844,2333.5,2333.4,0.42844]
[1726615539373,1.07096,2333.8,2333.5,0.42841]
[1726615539572,0.42839,2333.7,2333.5,0.42841]
[1726615539880,0.42839,2333.7,2333.6,0.4159]
[1726615540373,1.65839,2333.7,2333.6,0.4159]
[1726615547677,0.42845,2333.4,2333.3,4.0551]
[1726615549281,0.42845,2333.4,2333.3,3.2078]
[1726615554580,0.42847,2333.3,2333.2,0.4286]
[1726615554782,0.42847,2333.3,2333.2,0.97159527]
[1726615555387,0.42847,2333.3,2333.2,0.4286]
[1726615555578,0.42847,2333.3,2333.2,0.97158665]
[1726615555784,7.49595888,2334.0,2333.2,6.37878917]
[1726615556082,0.42836,2333.9,2333.6,1.6584]
[1726615556280,0.42837,2333.9,2333.7,1.2138]
[1726615557187,0.42837,2333.8,2333.7,1.2138]
[1726615557481,4.155,2334.0,2333.7,1.2138]
[1726615557482,0.42836,2333.9,2333.7,1.2138]
[1726615557988,4.155,2334.0,2333.7,1.2138]
[1726615557989,4.58335,2334.0,2333.7,1.2138]
[1726615558182,0.42835,2334.0,2333.7,1.64218]
[1726615558577,3.63613,2334.1,2333.8,0.54286536]
[1726615558779,3.63613,2334.1,2333.7,2.76378252]
[1726615558989,3.63613,2334.1,2333.8,0.54286319]
[1726615559179,3.63613,2334.1,2333.7,2.76378252]
[1726615559487,3.63613,2334.1,2333.7,1.64218]
[1726615560281,0.42834,2334.0,2333.7,1.64218]
[1726615560586,3.63613,2334.1,2333.8,0.54284766]
[1726615560886,3.63613,2334.1,2333.7,2.76378252]
[1726615561091,3.63613,2334.1,2333.8,0.54285308]
[1726615561284,3.63613,2334.1,2333.7,2.87218]
[1726615561483,0.42833,2334.1,2333.8,3.2078]
[1726615562085,0.42833,2334.1,2333.8,3.63617]
[1726615562591,0.42833,2334.1,2333.8,3.2078]
[1726615562983,0.42833,2334.1,2333.8,3.63617]
[1726615563383,0.42833,2334.1,2333.8,3.84531225]
[1726615564088,0.42834,2334.0,2333.8,3.2078]
[1726615564988,0.42834,2334.0,2333.8,3.63617]
[1726615565687,0.42833,2334.1,2333.8,3.63617]
[1726615566395,0.42833,2334.1,2333.8,0.42837]
[1726615566588,0.42833,2334.1,2333.8,3.63617]
[1726615568794,0.42833,2334.1,2333.9,0.42836]
[1726615569096,0.42833,2334.1,2333.8,3.63616]
[1726615569493,0.42833,2334.1,2333.9,0.42835]
[1726615569995,0.42833,2334.1,2334.0,0.4124]
[1726615576908,7.14162357,2334.8,2334.6,0.42823]
[1726615576909,0.4282,2334.8,2334.6,0.42823]
[1726615577196,4.155,2335.0,2334.6,1.23]
[1726615577197,0.4132,2335.0,2334.6,1.23]
[1726615577399,0.415,2335.1,2334.9,1.23]
[1726615577400,0.84314,2335.1,2334.9,1.23]
[1726615577602,0.8245,2335.3,2335.0,1.23]
[1726615577799,3.34095888,2335.9,2335.2,4.4378]
[1726615578098,9.28456726,2336.0,2335.7,1.23]
[1726615578099,3.34095888,2336.0,2335.7,1.23]
[1726615578292,4.036,2336.2,2335.8,4.8629719]
[1726615578688,4.036,2336.2,2335.8,4.4349719]
[1726615578891,4.46394,2336.2,2335.8,4.4349719]
[1726615579104,4.46394,2336.2,2335.8,1.2271719]
[1726615579395,5.69394,2336.2,2335.8,3.2078]
[1726615579592,0.42795,2336.1,2335.8,3.2078]
[1726615579993,2.67,2335.9,2335.5,3.2078]
[1726615580196,2.67,2335.9,2335.3,0.8042]
[1726615580394,2.67,2335.9,2335.3,0.405]
[1726615580395,3.09804,2335.7,2335.3,0.405]
[1726615580996,3.09804,2335.7,2335.4,3.2078]
[1726615581897,2.67,2335.7,2335.4,3.2078]
[1726615582298,3.09803,2335.7,2335.4,3.2078]
[1726615582799,2.67,2335.7,2335.4,3.2078]
[1726615583003,3.09803,2335.7,2335.4,3.2078]
[1726615583200,3.50123,2335.7,2335.4,3.2078]
[1726615583507,3.0732,2335.7,2335.4,3.2078]
[1726615583700,0.4032,2335.7,2335.4,3.2078]
[1726615585398,5.63986,2336.2,2335.7,0.42802]
[1726615585399,4.99794,2336.2,2335.7,0.42802]
[1726615585598,4.99794,2336.2,2335.7,3.63581]
[1726615585599,4.57,2336.2,2335.7,3.63581]
[1726615585804,4.57,2336.2,2335.7,3.2078]
[1726615585805,3.09796,2336.1,2335.7,3.2078]
[1726615586007,3.09796,2336.1,2335.5,0.82004]
[1726615586196,0.42796,2336.1,2335.7,3.2078]
[1726615586400,0.42797,2336.0,2335.7,3.2078]
[1726615586897,7.24,2336.2,2335.7,3.2078]
[1726615587103,0.42796,2336.1,2335.7,3.2078]
[1726615587801,7.24,2336.2,2335.7,3.2078]
[1726615587802,0.42797,2336.0,2335.7,3.2078]
[1726615588397,0.42796,2336.1,2335.7,3.2078]
[1726615588703,0.42797,2336.0,2335.7,3.2078]
[1726615590411,0.428,2335.9,2335.7,3.2078]
[1726615590598,3.085,2336.2,2335.3,4.0088]
[1726615590599,2.67,2336.0,2335.3,4.0088]
[1726615590814,0.42799,2335.9,2335.6,3.2078]
[1726615591798,2.67,2336.0,2335.6,3.2078]
[1726615592004,0.42799,2335.9,2335.6,3.2078]
[1726615593704,0.42801,2335.8,2335.6,3.2078]
[1726615593902,0.428,2335.9,2335.5,0.42805]
[1726615594306,0.428,2335.9,2335.6,3.2078]
[1726615594508,0.428,2335.9,2335.5,0.42805]
[1726615594705,0.42801,2335.8,2335.5,0.42805]
[1726615595207,0.428,2335.9,2335.5,0.42805]
[1726615596309,0.42801,2335.8,2335.4,0.41]
[1726615596508,2.67,2336.0,2335.5,0.42805]
[1726615596509,0.428,2335.9,2335.5,0.42805]
[1726615596709,0.42801,2335.8,2335.5,0.42805]
[1726615597201,0.42801,2335.8,2335.6,3.2078]
[1726615598913,0.42801,2335.8,2335.5,0.42805]
[1726615599108,0.42801,2335.8,2335.6,3.2078]
[1726615599510,0.42803,2335.7,2335.6,3.2078]
[1726615599702,0.42803,2335.7,2335.4,0.41]
[1726615599902,0.42803,2335.7,2335.4,0.83807]
[1726615600513,0.42805,2335.6,2335.4,0.83807]
[1726615601117,0.42804,2335.7,2335.4,0.83807]
[1726615605413,0.42804,2335.6,2335.4,0.83807]
[1726615605810,1.4659,2335.9,2335.4,0.83807]
[1726615606008,1.4659,2335.9,2335.5,0.42805]
[1726615606213,0.42802,2335.8,2335.6,3.2078]
[1726615606413,0.42803,2335.7,2335.5,0.42805]
[1726615607010,0.42803,2335.7,2335.4,0.83807]
[1726615607413,0.42805,2335.6,2335.4,0.83807]
[1726615608417,0.4207,2336.0,2335.4,0.41]
[1726615608618,0.42801,2335.8,2335.6,3.63583]
[1726615608925,0.42801,2335.8,2335.7,0.4292]
[1726615623238,0.42804,2335.6,2335.5,3.2078]
[1726615623423,0.42804,2335.6,2335.5,4.16146358]
[1726615625130,0.42804,2335.7,2335.5,4.16146358]
[1726615625325,1.6426,2335.9,2335.5,3.619]
[1726615625326,0.42804,2335.6,2335.5,3.619]
[1726615625530,0.42804,2335.6,2335.5,4.16147961]
[1726615627029,0.42804,2335.6,2335.5,4.16148204]
[1726615628132,0.42804,2335.6,2335.5,4.16148592]
[1726615629237,0.42804,2335.6,2335.5,0.95368592]
[1726615630225,0.42804,2335.6,2335.5,0.4112]
[1726615630434,0.42804,2335.6,2335.5,0.95368888]
[1726615632335,0.42804,2335.6,2335.5,0.4112]
[1726615632530,0.42804,2335.6,2335.5,0.95368621]
[1726615637360,0.42804,2335.6,2335.5,0.9536949]
[1726615637754,0.42804,2335.6,2335.5,0.95369518]
[1726615640061,0.4,2335.8,2335.5,2.07459653]
[1726615640263,0.42804,2335.6,2335.5,1.53210135]
[1726615640763,0.42804,2335.6,2335.5,2.94249397]
[1726615640965,0.42804,2335.6,2335.5,2.07456005]
[1726615641266,0.42804,2335.6,2335.5,2.07458023]
[1726615641765,0.42804,2335.6,2335.5,0.95367888]
[1726615642756,0.42803,2335.7,2335.5,6.89332888]
[1726615643070,0.42801,2335.8,2335.6,2.09141225]
[1726615643259,0.42801,2335.8,2335.7,3.5978]
[1726615643561,0.42801,2335.8,2335.7,5.3702709]
[1726615644165,0.42801,2335.8,2335.7,4.1402709]
[1726615645169,0.42801,2335.8,2335.7,3.5978]
[1726615645364,0.42801,2335.8,2335.7,4.14024056]
[1726615645564,0.428,2335.9,2335.7,4.56827056]
[1726615645768,0.428,2335.9,2335.8,0.3882]
[1726615646078,0.428,2335.9,2335.8,0.8163]
[1726615646282,0.428,2335.9,2335.8,1.35873394]
[1726615647675,0.428,2335.9,2335.8,0.8163]
[1726615650372,0.428,2335.9,2335.8,0.4281]
[1726615650678,0.8444,2335.9,2335.8,0.4281]
[1726615653279,0.428,2335.9,2335.8,0.4281]
[1726615656382,1.06996,2336.0,2335.7,0.39]
[1726615656383,0.42801,2335.8,2335.7,0.39]
[1726615656579,1.88523,2335.8,2335.6,0.8332]
[1726615656883,0.42804,2335.6,2335.5,0.4131]
[1726615659588,0.42804,2335.6,2335.5,1.6431]
[1726615663689,0.42804,2335.6,2335.5,0.4131]
[1726615663885,1.49816,2335.6,2335.5,0.4131]
[1726615664191,0.42808,2335.4,2335.3,0.3927]
[1726615664886,0.42812,2335.2,2335.1,4.0124]
[1726615665087,0.4281,2335.3,2335.1,5.2424]
[1726615666078,1.07016,2335.5,2335.1,5.2424]
[1726615666787,0.42812,2335.3,2335.1,5.2424]
[1726615666994,0.42812,2335.2,2335.1,5.2424]
[1726615667293,0.42811,2335.3,2335.1,6.32752396]
[1726615667488,0.42812,2335.2,2335.1,5.78496198]
[1726615667793,0.42812,2335.2,2335.1,6.32751235]
[1726615668095,0.42812,2335.2,2335.1,10.60991235]
[1726615669392,0.42812,2335.2,2335.1,10.06736198]